bitfinex/quotes_BTCUSD_20251217
["timestamp","ask_amount","ask_price","bid_price","bid_amount"]
[1765974822211,0.00071309,87251.0,87250.0,0.07089]
[1765974824413,0.00071309,87251.0,87250.0,0.18592874]
[1765974829865,0.00071309,87251.0,87250.0,0.005]
[1765974829866,0.00232596,87251.0,87250.0,0.005]
[1765974830079,0.00232596,87251.0,87236.0,0.11503874]
[1765974830248,0.33356622,87246.0,87236.0,0.01812]
[1765974830392,0.00463241,87245.0,87236.0,0.01812]
[1765974830597,0.00624528,87245.0,87236.0,0.01812]
[1765974830849,0.00463241,87244.0,87236.0,0.01812]
[1765974831052,0.00161287,87244.0,87236.0,0.01812]
[1765974831952,0.00161287,87244.0,87236.0,0.01912]
[1765974832114,0.00624528,87244.0,87236.0,0.01912]
[1765974832318,0.00463241,87243.0,87236.0,0.01912]
[1765974832517,0.00161287,87243.0,87236.0,0.01912]
[1765974833710,0.00624528,87243.0,87236.0,0.02012]
[1765974833912,0.00463241,87242.0,87236.0,0.02012]
[1765974834143,0.00463241,87242.0,87236.0,0.01812]
[1765974834521,0.00161287,87243.0,87236.0,0.02012]
[1765974834841,0.00161287,87243.0,87236.0,0.01912]
[1765974835759,0.00161287,87243.0,87236.0,0.02012]
[1765974836566,0.00161287,87243.0,87236.0,0.01912]
[1765974836981,0.00161287,87243.0,87236.0,0.02012]
[1765974841428,0.00161287,87243.0,87236.0,0.002]
[1765974841812,0.00161287,87243.0,87224.0,0.01812]
[1765974841813,0.5407,87240.0,87224.0,0.01812]
[1765974842034,0.2907,87233.0,87224.0,0.01812]
[1765974842351,0.00464072,87232.0,87224.0,0.01812]
[1765974842553,0.11492015,87229.0,87216.0,0.01812]
[1765974842751,0.00464072,87228.0,87216.0,0.01812]
[1765974843011,0.00464072,87228.0,87219.0,0.11503874]
[1765974843235,0.2907,87229.0,87219.0,0.11503874]
[1765974843372,0.00464072,87228.0,87219.0,0.11503874]
[1765974843805,0.00464072,87228.0,87217.0,0.02833]
[1765974844249,0.00464072,87228.0,87223.0,0.11503874]
[1765974844379,0.2907,87229.0,87223.0,0.11503874]
[1765974844984,0.001,87228.0,87223.0,0.11503874]
[1765974845185,0.02833,87235.0,87223.0,0.11503874]
[1765974845390,0.0046338,87234.0,87223.0,0.11503874]
[1765974845610,0.001,87229.0,87223.0,0.11503874]
[1765974846019,0.001,87229.0,87217.0,0.11503874]
[1765974846927,0.2907,87232.0,87218.0,0.02612]
[1765974847282,0.001,87228.0,87218.0,0.02612]
[1765974847485,0.2907,87232.0,87218.0,0.02612]
[1765974847757,0.001,87229.0,87218.0,0.02612]
[1765974848201,0.2907,87232.0,87218.0,0.02612]
[1765974848816,0.2907,87229.0,87218.0,0.08345027]
[1765974849218,0.2907,87229.0,87218.0,0.02612]
[1765974849436,0.06242662,87228.0,87217.0,0.11503874]
[1765974849605,0.06242662,87228.0,87216.0,0.01812]
[1765974849808,0.33356622,87226.0,87208.0,0.02293367]
[1765974850010,0.2907,87225.0,87211.0,0.01812]
[1765974850233,0.33356622,87223.0,87211.0,0.01812]
[1765974851315,0.33356622,87223.0,87213.0,0.01835652]
[1765974851494,0.33356622,87223.0,87216.0,0.11503874]
[1765974851495,0.33360942,87223.0,87216.0,0.11503874]
[1765974851668,4.32e-05,87223.0,87215.0,0.02612]
[1765974851879,4.32e-05,87223.0,87213.0,0.01835652]
[1765974853408,0.0010432,87223.0,87213.0,0.01835652]
[1765974855223,0.0010432,87223.0,87214.0,0.11503874]
[1765974856177,0.0010432,87223.0,87214.0,0.01907653]
[1765974856327,0.0010432,87223.0,87213.0,0.01835652]
[1765974856492,0.0010432,87223.0,87214.0,0.01313]
[1765974856696,4.32e-05,87223.0,87215.0,0.14115874]
[1765974856911,0.0010432,87223.0,87215.0,0.14115874]
[1765974857143,0.0010432,87223.0,87215.0,0.11503874]
[1765974857553,0.0010432,87223.0,87213.0,0.01835652]
[1765974857788,4.32e-05,87223.0,87213.0,0.01835652]
[1765974859292,4.32e-05,87223.0,87214.0,0.01313]
[1765974859517,4.32e-05,87223.0,87215.0,0.02612]
[1765974860246,4.32e-05,87223.0,87214.0,0.01313]
[1765974860597,4.32e-05,87223.0,87213.0,0.13339526]
[1765974860812,4.32e-05,87223.0,87213.0,0.01835652]
[1765974861842,4.32e-05,87223.0,87214.0,0.03925]
[1765974862834,4.32e-05,87223.0,87215.0,0.02612]
[1765974863406,4.32e-05,87223.0,87218.0,0.11503874]
[1765974864218,4.32e-05,87223.0,87215.0,0.02612]
[1765974864464,4.32e-05,87223.0,87215.0,0.14115874]
[1765974864964,4.32e-05,87223.0,87215.0,0.11503874]
[1765974865157,4.32e-05,87223.0,87213.0,0.01835652]
[1765974866105,0.06247414,87223.0,87213.0,0.01835652]
[1765974866242,4.32e-05,87223.0,87213.0,0.01835652]
[1765974867101,4.32e-05,87223.0,87213.0,0.13339526]
[1765974867684,4.32e-05,87223.0,87218.0,0.11503874]
[1765974869173,4.32e-05,87223.0,87214.0,0.11503874]
[1765974869596,4.32e-05,87223.0,87218.0,0.001]
[1765974870017,4.32e-05,87223.0,87213.0,0.01835652]
[1765974871424,4.32e-05,87223.0,87214.0,0.001]
[1765974871869,4.32e-05,87223.0,87217.0,0.01313]
[1765974872083,4.32e-05,87223.0,87213.0,0.01835652]
[1765974872292,4.32e-05,87223.0,87213.0,0.01935652]
[1765974872667,4.32e-05,87223.0,87213.0,0.01835652]
[1765974872866,0.33360942,87223.0,87213.0,0.01835652]
[1765974873077,0.00464336,87222.0,87217.0,0.001]
[1765974874416,0.00464336,87222.0,87214.0,0.01812]
[1765974874682,0.001,87222.0,87214.0,0.01812]
[1765974876042,0.00468656,87223.0,87214.0,0.01812]
[1765974876450,0.001,87222.0,87214.0,0.01812]
[1765974877286,0.00468656,87223.0,87214.0,0.01812]
[1765974877636,0.00568656,87223.0,87214.0,0.01812]
[1765974877854,0.00468656,87223.0,87214.0,0.01812]
[1765974879254,0.001,87222.0,87214.0,0.01812]
[1765974879462,0.00468656,87223.0,87214.0,0.01812]
[1765974879860,0.00568656,87223.0,87214.0,0.01812]
[1765974880068,0.00468656,87223.0,87214.0,0.01812]
[1765974880656,0.001,87222.0,87214.0,0.01812]
[1765974880846,0.00468656,87223.0,87214.0,0.01812]
[1765974881228,0.00568656,87223.0,87214.0,0.01812]
[1765974881729,0.03396688,87222.0,87214.0,0.01812]
[1765974881937,0.00464336,87221.0,87214.0,0.01812]
[1765974882757,0.00464336,87222.0,87214.0,0.01812]
[1765974882958,0.00468656,87223.0,87214.0,0.01812]
[1765974883258,0.001,87221.0,87214.0,0.01812]
[1765974883493,0.00468656,87223.0,87214.0,0.01812]
[1765974883903,0.001,87222.0,87214.0,0.01812]
[1765974884105,0.00468656,87223.0,87214.0,0.01812]
[1765974884479,0.001,87221.0,87214.0,0.0312]
[1765974884693,0.001,87221.0,87217.0,0.02543]
[1765974884914,0.001,87221.0,87220.0,0.15791874]
[1765974885452,0.001,87221.0,87220.0,0.04288]
[1765974885663,4.32e-05,87223.0,87220.0,0.04288]
[1765974885873,4.32e-05,87223.0,87222.0,0.11503874]
[1765974886078,0.001,87222.0,87221.0,0.11503874]
[1765974886251,0.00452386,87228.0,87220.0,0.02543]
[1765974886464,0.00452386,87228.0,87223.0,0.11503874]
[1765974886861,0.2907,87232.0,87223.0,0.11503874]
[1765974888012,0.2907,87232.0,87222.0,0.001]
[1765974888261,0.2907,87232.0,87223.0,0.11503874]
[1765974888999,0.2907,87232.0,87220.0,0.02543]
[1765974889202,0.2907,87229.0,87221.0,0.03601025]
[1765974889610,0.2907,87229.0,87223.0,0.11503874]
[1765974890024,0.2907,87229.0,87221.0,0.01308]
[1765974890228,0.2907,87229.0,87223.0,0.11503874]
[1765974890440,0.2907,87232.0,87223.0,0.11503874]
[1765974890660,0.2907,87232.0,87221.0,0.01308]
[1765974891261,0.2907,87232.0,87221.0,0.03936]
[1765974891474,0.2907,87238.0,87227.0,0.01835652]
[1765974891673,0.33397154,87237.0,87227.0,0.01835652]
[1765974892433,0.001,87232.0,87227.0,0.01835652]
[1765974892679,0.2907,87238.0,87227.0,0.01835652]
[1765974892896,0.001,87237.0,87227.0,0.01835652]
[1765974893367,0.2907,87238.0,87227.0,0.01835652]
[1765974893615,0.001,87232.0,87227.0,0.01835652]
[1765974893850,0.2907,87238.0,87227.0,0.01835652]
[1765974894093,0.001,87237.0,87227.0,0.01835652]
[1765974894539,0.2907,87238.0,87227.0,0.01835652]
[1765974894956,0.33397154,87237.0,87227.0,0.01835652]
[1765974895204,0.33497154,87237.0,87227.0,0.01835652]
[1765974896848,0.33597154,87237.0,87227.0,0.01835652]
[1765974897921,0.00463802,87236.0,87227.0,0.01835652]
[1765974898997,0.00563802,87236.0,87227.0,0.01835652]
[1765974899418,0.29533788,87235.0,87227.0,0.01835652]
[1765974899634,0.00463788,87234.0,87227.0,0.01835652]
[1765974902182,0.00463788,87234.0,87224.0,0.01812]
[1765974902508,0.2907,87233.0,87224.0,0.01812]
[1765974902801,0.00463788,87232.0,87224.0,0.01812]
[1765974904118,0.00563788,87232.0,87224.0,0.01812]
[1765974904713,0.00563788,87232.0,87227.0,0.01835652]
[1765974904916,0.00463788,87231.0,87229.0,0.11503874]
[1765974905366,0.001,87232.0,87229.0,0.11503874]
[1765974905566,0.001,87232.0,87227.0,0.01835652]
[1765974905968,0.00463788,87234.0,87227.0,0.01835652]
[1765974906192,0.001,87231.0,87227.0,0.01835652]
[1765974906580,0.00463788,87236.0,87227.0,0.01835652]
[1765974906784,0.001,87232.0,87227.0,0.01835652]
[1765974907224,0.00463788,87236.0,87227.0,0.01835652]
[1765974907425,0.2907,87238.0,87227.0,0.01835652]
[1765974907426,0.33860942,87237.0,87227.0,0.01835652]
[1765974907564,0.00463788,87236.0,87227.0,0.01835652]
[1765974908639,0.001,87231.0,87227.0,0.01835652]
[1765974908791,0.00463788,87236.0,87227.0,0.01835652]
[1765974909216,0.001,87236.0,87227.0,0.01835652]
[1765974909420,0.00563788,87236.0,87227.0,0.01835652]
[1765974909650,0.00463788,87236.0,87227.0,0.01835652]
[1765974909853,0.001,87231.0,87227.0,0.01835652]
[1765974910014,0.00563788,87236.0,87227.0,0.01835652]
[1765974910433,0.00663788,87236.0,87227.0,0.01835652]
[1765974910640,0.00563788,87236.0,87227.0,0.01835652]
[1765974911623,0.00463788,87236.0,87227.0,0.01835652]
[1765974912028,0.001,87231.0,87229.0,0.01296]
[1765974912229,0.00463788,87236.0,87227.0,0.01835652]
[1765974912434,0.33860942,87237.0,87227.0,0.01835652]
[1765974912664,0.00563788,87236.0,87227.0,0.01835652]
[1765974912860,0.00663788,87236.0,87227.0,0.01835652]
[1765974913037,0.00563788,87236.0,87227.0,0.01835652]
[1765974913245,0.001,87231.0,87227.0,0.01835652]
[1765974913626,0.00463788,87233.0,87227.0,0.01835652]
[1765974913825,0.00463788,87236.0,87227.0,0.01835652]
[1765974914027,0.00463788,87235.0,87227.0,0.01835652]
[1765974914232,0.00463788,87234.0,87227.0,0.01835652]
[1765974914459,0.00463788,87233.0,87227.0,0.01835652]
[1765974914673,0.00463788,87234.0,87227.0,0.01835652]
[1765974914875,0.00463788,87233.0,87227.0,0.01835652]
[1765974915081,0.00463788,87234.0,87227.0,0.01835652]
[1765974915280,0.00463788,87233.0,87227.0,0.01835652]
[1765974916164,0.00563788,87233.0,87224.0,0.01812]
[1765974917500,0.00463788,87232.0,87224.0,0.01812]
[1765974918117,0.00463788,87233.0,87224.0,0.01812]
[1765974918326,0.00463788,87232.0,87224.0,0.01812]
[1765974918730,0.00463788,87233.0,87224.0,0.01812]
[1765974918912,0.00563788,87232.0,87224.0,0.01812]
[1765974919110,0.00463788,87231.0,87224.0,0.01812]
[1765974919538,0.001,87232.0,87224.0,0.01812]
[1765974919748,0.00563788,87232.0,87224.0,0.01812]
[1765974919946,0.00463788,87231.0,87224.0,0.01812]
[1765974920147,0.001,87232.0,87224.0,0.01812]
[1765974920396,0.00563788,87232.0,87224.0,0.01812]
[1765974920594,0.00463788,87231.0,87224.0,0.01812]
[1765974920722,0.001,87232.0,87224.0,0.01812]
[1765974920923,0.00463788,87232.0,87224.0,0.01812]
[1765974921148,0.00463788,87233.0,87224.0,0.01812]
[1765974921369,0.001,87231.0,87224.0,0.01812]
[1765974921772,0.00463788,87232.0,87224.0,0.01812]
[1765974922010,0.001,87232.0,87224.0,0.01812]
[1765974922273,0.00563788,87232.0,87224.0,0.01812]
[1765974922468,0.2907,87229.0,87213.0,0.01835652]
[1765974922619,0.33397154,87223.0,87213.0,0.01873358]
[1765974922822,0.00463788,87222.0,87213.0,0.01873358]
[1765974926399,0.02490298,87222.0,87213.0,0.01873358]
[1765974926627,0.00463788,87221.0,87213.0,0.01873358]
[1765974927022,0.00463788,87222.0,87213.0,0.01873358]
[1765974929033,0.00463788,87222.0,87219.0,0.11503874]
[1765974929216,0.2907,87229.0,87219.0,0.11503874]
[1765974929409,0.00462181,87228.0,87219.0,0.11503874]
[1765974930027,0.00462181,87228.0,87216.0,0.02444]
[1765974930270,0.00462181,87228.0,87227.0,0.04279652]
[1765974930470,0.2907,87229.0,87227.0,0.01835652]
[1765974930643,0.00462181,87228.0,87227.0,0.01835652]
[1765974930844,0.00562181,87228.0,87227.0,0.01835652]
[1765974931129,0.33397154,87237.0,87227.0,0.01835652]
[1765974931471,0.001,87228.0,87227.0,0.01835652]
[1765974931788,0.33397154,87237.0,87227.0,0.01835652]
[1765974932167,0.00230568,87228.0,87227.0,0.01835652]
[1765974941678,0.00230568,87228.0,87227.0,0.06317652]
[1765974942026,0.14590926,87245.0,87227.0,0.06317652]
[1765974942027,0.03098911,87264.0,87248.0,0.02671]
[1765974942189,0.03098911,87264.0,87250.0,0.01835652]
[1765974942384,0.2907,87259.0,87250.0,0.04506652]
[1765974942581,0.33387912,87260.0,87250.0,0.01835652]
[1765974942789,0.2907,87259.0,87250.0,0.13339526]
[1765974942991,0.00415379,87258.0,87250.0,0.13339526]
[1765974943191,0.00065612,87251.0,87250.0,0.13339526]
[1765974943396,0.00065612,87251.0,87250.0,0.12339526]
[1765974943728,0.00165612,87251.0,87250.0,0.12339526]
[1765974943962,0.00165612,87251.0,87250.0,0.00835652]
[1765974943963,0.00065612,87251.0,87250.0,0.00835652]
[1765974946091,0.00065612,87251.0,87250.0,0.03506652]
[1765974946490,0.00065612,87251.0,87250.0,0.00835652]
[1765974947774,0.0013787,87251.0,87250.0,0.00835652]
[1765974950614,0.0013787,87251.0,87247.0,0.11503874]
[1765974950856,0.00065612,87251.0,87249.0,0.01835652]
[1765974954120,0.00065612,87251.0,87250.0,0.01835652]
[1765974954701,0.00226899,87251.0,87245.0,0.01812]
[1765974954877,0.00226899,87251.0,87247.0,0.01835652]
[1765974955996,0.00062835,87248.0,87247.0,0.01835652]
[1765974956218,0.00224122,87248.0,87245.0,0.01812]
[1765974956422,0.00161287,87248.0,87245.0,0.01812]
[1765974960189,0.00161287,87248.0,87238.0,0.02493]
[1765974960399,0.00161287,87248.0,87237.0,0.01812]
[1765974960608,0.07577444,87248.0,87237.0,0.01812]
[1765974960746,0.2907,87245.0,87237.0,0.01812]
[1765974961137,0.2907,87245.0,87227.0,0.13339526]
[1765974961138,0.2907,87245.0,87227.0,0.03647652]
[1765974961435,0.3337266,87240.0,87227.0,0.03647652]
[1765974963049,0.00056553,87246.0,87230.0,0.02493]
[1765974963254,0.0057234,87248.0,87241.0,0.03135652]
[1765974963583,0.0057234,87248.0,87247.0,0.04127]
[1765974963584,0.00161287,87248.0,87247.0,0.04127]
[1765974963783,0.2907,87249.0,87248.0,0.15630874]
[1765974964019,0.3337266,87260.0,87250.0,0.15630874]
[1765974964219,0.2907,87259.0,87250.0,0.15630874]
[1765974964432,0.3337266,87260.0,87250.0,0.15630874]
[1765974964600,0.3337266,87260.0,87250.0,0.01634]
[1765974964601,0.2907,87259.0,87250.0,0.01634]
[1765974964801,0.2907,87259.0,87250.0,0.13137874]
[1765974967320,0.2907,87259.0,87250.0,0.15526874]
[1765974967524,0.2907,87259.0,87250.0,0.13137874]
[1765974968133,0.2907,87259.0,87250.0,0.01634]
[1765974969036,0.3337266,87270.0,87250.0,0.04023]
[1765974969237,0.29481493,87269.0,87250.0,0.09756027]
[1765974969439,0.29481493,87269.0,87250.0,0.04023]
[1765974969440,0.00411493,87268.0,87250.0,0.04023]
[1765974969635,0.0013787,87251.0,87250.0,0.04023]
[1765974970265,0.0013787,87251.0,87250.0,0.09756027]
[1765974970474,0.0013787,87251.0,87250.0,0.09856027]
[1765974971257,0.0013787,87251.0,87250.0,0.04123]
[1765974971671,0.0013787,87251.0,87250.0,0.04223]
[1765974972283,0.0013787,87251.0,87250.0,0.002]
[1765974980844,0.00299157,87251.0,87250.0,0.002]
[1765974981787,0.00299157,87251.0,87250.0,0.001]
[1765974981994,0.00299157,87251.0,87241.0,0.01835652]
[1765974982128,0.33599559,87251.0,87241.0,0.01835652]
[1765974982335,0.00411493,87250.0,87241.0,0.01835652]
[1765974982552,0.05120016,87250.0,87231.0,0.01812]
[1765974982812,0.2907,87240.0,87231.0,0.01812]
[1765974983005,0.29231287,87240.0,87231.0,0.01812]
[1765974983398,0.00410041,87239.0,87231.0,0.01812]
[1765974983558,0.00571328,87239.0,87231.0,0.01812]
[1765974984091,0.02066096,87238.0,87231.0,0.001]
[1765974984275,0.02066096,87238.0,87231.0,0.002]
[1765974984276,0.02227383,87238.0,87231.0,0.002]
[1765974984676,0.31297383,87238.0,87231.0,0.001]
[1765974984910,0.29231287,87238.0,87231.0,0.001]
[1765974985120,0.29231287,87238.0,87231.0,0.002]
[1765974985398,0.29231287,87238.0,87231.0,0.001]
[1765974985610,0.29231287,87238.0,87231.0,0.002]
[1765974985961,0.29231287,87238.0,87231.0,0.001]
[1765974986356,0.29231287,87238.0,87223.0,0.01812]
[1765974986578,0.3337266,87233.0,87223.0,0.01812]
[1765974988639,0.3337266,87233.0,87223.0,0.01912]
[1765974989024,0.00161287,87238.0,87224.0,0.02389]
[1765974989265,0.00161287,87238.0,87227.0,0.01835652]
[1765974989911,0.00161287,87238.0,87232.0,0.02389]
[1765974990137,0.00161287,87238.0,87232.0,0.04681736]
[1765974990769,0.00161287,87238.0,87231.0,0.11503874]
[1765974992572,0.00161287,87238.0,87231.0,0.13892874]
[1765974993208,0.00161287,87238.0,87231.0,0.11503874]
[1765974994037,0.00025138,87236.0,87231.0,0.11503874]
[1765974997232,0.00025138,87236.0,87228.0,0.12761874]
[1765974999501,0.00025138,87236.0,87228.0,0.11503874]
[1765975000849,0.00025138,87236.0,87227.0,0.01835652]
[1765975001267,0.29095138,87236.0,87227.0,0.01835652]
[1765975004433,0.29195138,87236.0,87227.0,0.01835652]
[1765975004645,0.29195138,87236.0,87223.0,0.01812]
[1765975004877,0.33383369,87233.0,87223.0,0.01812]
[1765975010298,0.00409047,87232.0,87223.0,0.01812]
[1765975010502,0.00409047,87232.0,87224.0,0.11503874]
[1765975011644,0.00409047,87232.0,87223.0,0.01812]
[1765975016288,0.00409047,87232.0,87231.0,0.01615]
[1765975016462,0.00025138,87236.0,87232.0,0.02311]
[1765975016644,0.00025138,87236.0,87235.0,0.13814874]
[1765975016849,0.00025138,87236.0,87235.0,0.18876531]
[1765975018491,0.00025138,87236.0,87235.0,0.2310533]
[1765975018912,0.00025138,87236.0,87235.0,0.2330533]
[1765975019115,0.00025138,87236.0,87235.0,0.2320533]
[1765975019552,0.00025138,87236.0,87235.0,0.19076531]
[1765975020301,0.00025138,87236.0,87235.0,0.19276531]
[1765975020506,0.00025138,87236.0,87235.0,0.07772657]
[1765975020748,0.00025138,87236.0,87235.0,0.004]
[1765975020952,0.00025138,87236.0,87235.0,0.04523]
[1765975021153,0.00025138,87236.0,87235.0,0.07292]
[1765975021355,0.00025138,87236.0,87235.0,0.07092]
[1765975021596,0.00025138,87236.0,87235.0,0.06892]
[1765975021911,0.00025138,87236.0,87235.0,0.07192]
[1765975029395,0.00025138,87236.0,87235.0,0.2067609]
[1765975030004,0.00025138,87236.0,87235.0,0.07192]
[1765975032491,0.00025138,87236.0,87235.0,0.07092]
[1765975033049,0.00025138,87236.0,87235.0,0.06992]
[1765975033934,0.00025138,87236.0,87235.0,0.07092]
[1765975034691,0.00025138,87236.0,87235.0,0.06992]
[1765975034896,0.00025138,87236.0,87235.0,0.07092]
[1765975035632,0.00025138,87236.0,87235.0,0.06992]
[1765975036080,0.00025138,87236.0,87235.0,0.07092]
[1765975037625,0.00025138,87236.0,87235.0,0.02012]
[1765975037831,0.00186425,87236.0,87235.0,0.02012]
[1765975038681,0.00186425,87236.0,87235.0,0.01912]
[1765975039062,0.00186425,87236.0,87235.0,0.07065]
[1765975039241,0.00186425,87236.0,87235.0,0.06965]
[1765975039680,0.00186425,87236.0,87235.0,0.07065]
[1765975043445,0.00025138,87236.0,87235.0,0.07065]
[1765975043643,0.00025138,87236.0,87235.0,0.18568874]
[1765975043896,0.00025138,87236.0,87235.0,0.07065]
[1765975050182,0.00025138,87236.0,87235.0,0.23957076]
[1765975050382,0.00025138,87236.0,87235.0,0.18568874]
[1765975050584,0.00025138,87236.0,87235.0,0.20861531]
[1765975051544,0.00025138,87236.0,87235.0,0.18568874]
[1765975057726,0.00025138,87236.0,87235.0,0.20861531]
[1765975063421,0.00025138,87236.0,87235.0,0.05253]
[1765975063726,0.00025138,87236.0,87235.0,0.07065]
[1765975067249,0.00025138,87236.0,87235.0,0.09114666]
[1765975067439,0.00025138,87236.0,87235.0,0.2061854]
[1765975067639,0.00025138,87236.0,87235.0,0.14847693]
[1765975072398,0.00025138,87236.0,87235.0,0.09114666]
[1765975072773,0.00025138,87236.0,87235.0,0.07065]
[1765975072994,0.00025138,87236.0,87235.0,0.05253]
[1765975073195,0.00025138,87236.0,87235.0,0.07065]
[1765975078033,0.00025138,87236.0,87235.0,0.18568874]
[1765975078244,0.00025138,87236.0,87235.0,0.20861531]
[1765975078459,0.00025138,87236.0,87235.0,0.41495451]
[1765975079295,0.00025138,87236.0,87235.0,0.47694021]
[1765975079506,0.00025138,87236.0,87235.0,0.47594021]
[1765975079912,0.00025138,87236.0,87235.0,0.47794021]
[1765975080125,0.00025138,87236.0,87235.0,0.47894021]
[1765975080329,0.00025138,87236.0,87235.0,0.41695451]
[1765975080539,0.00025138,87236.0,87235.0,0.18668874]
[1765975081096,0.00025138,87236.0,87235.0,0.18868874]
[1765975081286,0.00025138,87236.0,87235.0,0.18668874]
[1765975081777,0.00025138,87236.0,87235.0,0.18768874]
[1765975081969,0.00025138,87236.0,87235.0,0.18568874]
[1765975082130,0.00025138,87236.0,87235.0,0.18668874]
[1765975083334,0.00025138,87236.0,87235.0,0.07165]
[1765975083868,0.00025138,87236.0,87235.0,0.1026411]
[1765975084247,0.00025138,87236.0,87235.0,0.1016411]
[1765975084442,0.00025138,87236.0,87235.0,0.1006411]
[1765975084786,0.00025138,87236.0,87235.0,0.1026411]
[1765975085231,0.00025138,87236.0,87235.0,0.10263981]
[1765975085377,0.00025138,87236.0,87235.0,0.07165]
[1765975086216,0.00025138,87236.0,87235.0,0.1026383]
[1765975092099,0.00025138,87236.0,87235.0,0.07165]
[1765975100317,0.00025138,87236.0,87235.0,0.18668874]
[1765975100520,0.00025138,87236.0,87235.0,0.20961531]
[1765975101562,0.00025138,87236.0,87235.0,0.09457657]
[1765975101769,0.00025138,87236.0,87235.0,0.07165]
[1765975102190,0.00025138,87236.0,87235.0,0.18668874]
[1765975102397,0.00025138,87236.0,87235.0,0.07165]
[1765975103166,0.00025138,87236.0,87235.0,0.18668874]
[1765975104069,0.00025138,87236.0,87235.0,0.20961531]
[1765975109530,0.00025138,87236.0,87235.0,0.18668874]
[1765975110518,0.00025138,87236.0,87235.0,0.07165]
[1765975111553,0.00025138,87236.0,87235.0,0.04814]
[1765975111858,0.00186425,87236.0,87235.0,0.03002]
[1765975112072,0.00186425,87236.0,87235.0,0.002]
[1765975112295,0.04297167,87236.0,87235.0,0.002]
[1765975112490,0.0465615,87236.0,87235.0,0.002]
[1765975112691,0.00545408,87236.0,87235.0,0.001]
[1765975112850,0.00186425,87236.0,87235.0,0.001]
[1765975113046,0.00286425,87236.0,87235.0,0.001]
[1765975113248,0.00286425,87236.0,87228.0,0.02398]
[1765975113569,0.00386425,87236.0,87228.0,0.02398]
[1765975114245,0.00286425,87236.0,87228.0,0.02398]
[1765975114469,0.00186425,87236.0,87228.0,0.02398]
[1765975114660,0.00386425,87236.0,87228.0,0.02398]
[1765975116180,0.00386425,87236.0,87227.0,0.03647652]
[1765975116789,0.00386425,87236.0,87227.0,0.01812]
[1765975116790,0.00745452,87236.0,87227.0,0.01812]
[1765975116991,0.2907,87234.0,87214.0,0.03098515]
[1765975117190,0.2907,87223.0,87213.0,0.01835652]
[1765975117425,0.62468284,87223.0,87213.0,0.01835652]
[1765975118454,0.62468284,87223.0,87213.0,0.01973358]
[1765975118657,0.62468284,87223.0,87213.0,0.02073358]
[1765975119235,0.62468284,87223.0,87214.0,0.02379]
[1765975119439,0.2907,87223.0,87214.0,0.02379]
[1765975119690,0.2907,87223.0,87216.0,0.01201]
[1765975119907,0.2907,87223.0,87213.0,0.00037706]
[1765975120108,0.40562015,87214.0,87213.0,0.00137706]
[1765975120298,0.29429091,87214.0,87213.0,0.00137706]
[1765975120474,0.40921162,87214.0,87213.0,0.00037706]
[1765975120879,0.32877365,87214.0,87213.0,0.00037706]
[1765975121087,0.32518218,87214.0,87213.0,0.00037706]
[1765975121305,0.32518218,87214.0,87213.0,0.04131706]
[1765975121454,0.32718218,87214.0,87213.0,0.04131706]
[1765975121668,0.32518218,87214.0,87213.0,0.04031706]
[1765975122103,0.32618218,87214.0,87213.0,0.04031706]
[1765975122321,0.3838004,87214.0,87213.0,0.00037706]
[1765975122763,0.3828004,87214.0,87213.0,0.00037706]
[1765975123293,0.3838004,87214.0,87213.0,0.00037706]
[1765975123500,0.3828004,87214.0,87213.0,0.00037706]
[1765975123916,0.3838004,87214.0,87213.0,0.00037706]
[1765975127237,0.32618218,87214.0,87213.0,0.00037706]
[1765975141446,0.3297735,87214.0,87213.0,0.00037706]
[1765975142078,0.44469365,87214.0,87213.0,0.00037706]
[1765975142432,0.3297735,87214.0,87213.0,0.00037706]
[1765975143394,0.44469365,87214.0,87213.0,0.00037706]
[1765975143779,0.3297735,87214.0,87213.0,0.00037706]
[1765975146019,0.3297735,87214.0,87213.0,0.03818706]
[1765975146196,0.29529132,87214.0,87213.0,0.03818706]
[1765975147393,0.29529132,87214.0,87213.0,0.1532258]
[1765975148787,0.29529132,87214.0,87213.0,0.03818706]
[1765975149840,0.29529132,87214.0,87213.0,0.1532258]
[1765975151904,0.29529132,87214.0,87213.0,0.03818706]
[1765975152398,0.29529132,87214.0,87213.0,0.05654358]
[1765975153421,0.001,87214.0,87213.0,0.09778717]
[1765975153554,0.001,87214.0,87213.0,0.46515751]
[1765975153751,0.001,87214.0,87213.0,0.40090593]
[1765975154062,0.00359053,87235.0,87234.0,0.04934]
[1765975154288,0.00025138,87236.0,87235.0,0.02657]
[1765975155308,0.00025138,87236.0,87235.0,0.01153]
[1765975157892,0.00025138,87236.0,87235.0,0.04934]
[1765975161534,0.00025138,87236.0,87230.0,0.02277]
[1765975162423,0.00025138,87236.0,87229.0,0.01835652]
[1765975162424,0.00025138,87236.0,87235.0,0.04934]
[1765975164787,0.00025138,87236.0,87235.0,0.02657]
[1765975165011,0.00025138,87236.0,87235.0,0.01153]
[1765975165337,0.00025138,87236.0,87231.0,0.02277]
[1765975172115,0.00025138,87236.0,87232.0,0.02277]
[1765975172505,0.00025138,87236.0,87235.0,0.03781]
[1765975176092,0.00025138,87236.0,87235.0,0.01504]
[1765975176298,0.00025138,87236.0,87231.0,0.01153]
[1765975177330,0.00025138,87236.0,87229.0,0.01835652]
[1765975177930,0.00025138,87236.0,87231.0,0.03639]
[1765975178272,0.00025138,87236.0,87232.0,0.02483]
[1765975178652,0.00025138,87236.0,87231.0,0.01156]
[1765975179459,0.00025138,87236.0,87231.0,0.03639]
[1765975179662,0.00025138,87236.0,87231.0,0.01156]
[1765975179873,0.00025138,87236.0,87232.0,0.04295]
[1765975182984,0.00025138,87236.0,87232.0,0.01812]
[1765975188382,0.2907,87235.0,87232.0,0.01812]
[1765975188587,0.00359031,87234.0,87232.0,0.01812]
[1765975188816,0.00359031,87234.0,87221.0,0.03086142]
[1765975188817,0.29590318,87233.0,87221.0,0.03086142]
[1765975188970,0.33380635,87231.0,87220.0,0.01812]
[1765975189173,0.00359031,87230.0,87220.0,0.01812]
[1765975190354,0.00520318,87230.0,87220.0,0.01812]
[1765975198731,0.00520318,87230.0,87217.0,0.02483]
[1765975198732,0.00641,87229.0,87218.0,0.01835652]
[1765975198946,0.00359031,87228.0,87218.0,0.01835652]
[1765975199144,0.00359031,87228.0,87217.0,0.0114]
[1765975199145,0.03806425,87228.0,87217.0,0.0114]
[1765975199309,0.00359031,87227.0,87217.0,0.0114]
[1765975199712,0.00359031,87228.0,87217.0,0.0114]
[1765975199945,0.02952,87226.0,87217.0,0.0114]